[Event "Early-Titled-Tuesday-Blitz-October-24-2023"]
[Site "Chess.com"]
[Date "2023.10.24"]
[Round "11"]
[White "PenguiinQueen"]
[Black "karinachess1"]
[Result "0-1"]
[WhiteElo "2347"]
[BlackElo "2643"]
[TimeControl "180+1"]
[EndTime "10:03:07 PDT"]
[Termination "karinachess1 won on time"]

1. e4 {[%clk 0:03:00.9]} 1... e5 {[%clk 0:02:59.1]} 2. Nf3 {[%clk 0:03:00]} 2...
Nc6 {[%clk 0:02:59.3]} 3. Bc4 {[%clk 0:03:00.1]} 3... Nf6 {[%clk 0:02:56.8]} 4.
d3 {[%clk 0:02:59.7]} 4... h6 {[%clk 0:02:55.8]} 5. c3 {[%clk 0:02:51.5]} 5...
d6 {[%clk 0:02:55.9]} 6. O-O {[%clk 0:02:45.4]} 6... g5 {[%clk 0:02:52.9]} 7.
Re1 {[%clk 0:02:41]} 7... Bg7 {[%clk 0:02:52.4]} 8. d4 {[%clk 0:02:40.5]} 8...
Bg4 {[%clk 0:02:07.6]} 9. Nbd2 {[%clk 0:02:31.2]} 9... Qe7 {[%clk 0:01:58.7]}
10. Bb5 {[%clk 0:02:23.4]} 10... Bd7 {[%clk 0:01:46.5]} 11. dxe5 {[%clk
0:02:15]} 11... dxe5 {[%clk 0:01:36.5]} 12. Nc4 {[%clk 0:02:10.5]} 12... O-O-O
{[%clk 0:01:22]} 13. Qe2 {[%clk 0:01:27.5]} 13... Ne8 {[%clk 0:01:20.9]} 14. Ne3
{[%clk 0:01:19.3]} 14... g4 {[%clk 0:00:51.8]} 15. Nd2 {[%clk 0:01:16.5]} 15...
Nf6 {[%clk 0:00:46.4]} 16. Bxc6 {[%clk 0:00:42.5]} 16... Bxc6 {[%clk 0:00:44.6]}
17. Nxg4 {[%clk 0:00:41.6]} 17... Rhg8 {[%clk 0:00:35.1]} 18. Ne3 {[%clk
0:00:17.3]} 18... Qe6 {[%clk 0:00:34.5]} 19. f3 {[%clk 0:00:15.2]} 19... Nh5
{[%clk 0:00:29.5]} 20. Kh1 {[%clk 0:00:14.6]} 20... Nf4 {[%clk 0:00:29.4]} 21.
Qf1 {[%clk 0:00:14.6]} 21... Bf8 {[%clk 0:00:25.7]} 22. Ndc4 {[%clk 0:00:11.6]}
22... h5 {[%clk 0:00:18]} 23. b4 {[%clk 0:00:10]} 23... h4 {[%clk 0:00:15.7]}
24. a4 {[%clk 0:00:09.5]} 24... h3 {[%clk 0:00:15.4]} 25. g3 {[%clk 0:00:10]}
25... Nd3 {[%clk 0:00:14.8]} 26. Rd1 {[%clk 0:00:08]} 26... Nxc1 {[%clk
0:00:07.2]} 27. Raxc1 {[%clk 0:00:08.9]} 27... Be7 {[%clk 0:00:07.1]} 28. b5
{[%clk 0:00:07.7]} 28... Bd7 {[%clk 0:00:07.6]} 29. Nf5 {[%clk 0:00:06.9]} 29...
Bc5 {[%clk 0:00:07.5]} 30. Nce3 {[%clk 0:00:06.2]} 30... Qg6 {[%clk 0:00:06.8]}
31. Ng4 {[%clk 0:00:01.8]} 31... Bxf5 {[%clk 0:00:06.3]} 32. exf5 {[%clk
0:00:02.7]} 32... Qxf5 {[%clk 0:00:06.9]} 33. Rxd8+ {[%clk 0:00:02.3]} 33...
Rxd8 {[%clk 0:00:07.8]} 34. Rd1 {[%clk 0:00:01.7]} 34... Rxd1 {[%clk 0:00:07.5]}
35. Qxd1 {[%clk 0:00:02.6]} 35... e4 {[%clk 0:00:08.1]} 36. fxe4 {[%clk
0:00:02.1]} 36... Qxe4+ {[%clk 0:00:07.9]} 0-1

[Event "Early-Titled-Tuesday-Blitz-October-24-2023"]
[Site "Chess.com"]
[Date "2023.10.24"]
[Round "11"]
[White "Mystery2007"]
[Black "matenitian"]
[Result "1-0"]
[WhiteElo "2457"]
[BlackElo "2548"]
[TimeControl "180+1"]
[EndTime "10:03:07 PDT"]
[Termination "Mystery2007 won on time"]

1. h4 {[%clk 0:03:00.9]} 1... e5 {[%clk 0:02:55.2]} 2. c4 {[%clk 0:03:00.8]}
2... Nc6 {[%clk 0:02:53.3]} 3. Nc3 {[%clk 0:03:00.6]} 3... Bb4 {[%clk
0:02:52.6]} 4. Nd5 {[%clk 0:03:00.2]} 4... Bc5 {[%clk 0:02:49.2]} 5. e3 {[%clk
0:03:00.4]} 5... Nf6 {[%clk 0:02:45.3]} 6. Qc2 {[%clk 0:02:56.9]} 6... d6 {[%clk
0:02:36.2]} 7. Nc3 {[%clk 0:02:44.2]} 7... a5 {[%clk 0:02:30.9]} 8. a3 {[%clk
0:02:43.2]} 8... Bg4 {[%clk 0:02:25.9]} 9. Bd3 {[%clk 0:02:33]} 9... h6 {[%clk
0:02:10]} 10. Ne4 {[%clk 0:02:26.6]} 10... Nxe4 {[%clk 0:01:49.4]} 11. Bxe4
{[%clk 0:02:27.5]} 11... O-O {[%clk 0:01:48.7]} 12. f3 {[%clk 0:02:23.6]} 12...
Be6 {[%clk 0:01:47.7]} 13. g4 {[%clk 0:02:23.1]} 13... Bb6 {[%clk 0:01:35.6]}
14. Ne2 {[%clk 0:02:20.2]} 14... d5 {[%clk 0:01:33.6]} 15. cxd5 {[%clk
0:02:19.4]} 15... Bxd5 {[%clk 0:01:34.2]} 16. Ng3 {[%clk 0:02:18.7]} 16... a4
{[%clk 0:01:27.9]} 17. g5 {[%clk 0:02:11.4]} 17... Bxe4 {[%clk 0:01:25]} 18.
Qxe4 {[%clk 0:02:10.8]} 18... Qd6 {[%clk 0:01:20.4]} 19. Nf5 {[%clk 0:02:08.6]}
19... Qe6 {[%clk 0:01:11.8]} 20. gxh6 {[%clk 0:01:46.2]} 20... g6 {[%clk
0:01:11.5]} 21. Ng7 {[%clk 0:01:34]} 21... Qf6 {[%clk 0:00:59]} 22. h5 {[%clk
0:01:31.2]} 22... Kh7 {[%clk 0:00:48.3]} 23. d3 {[%clk 0:01:12.2]} 23... Na5
{[%clk 0:00:43.3]} 24. Bd2 {[%clk 0:01:06.2]} 24... Nb3 {[%clk 0:00:32.5]} 25.
Rd1 {[%clk 0:01:05.2]} 25... Nc5 {[%clk 0:00:23.3]} 26. Qg4 {[%clk 0:00:51.8]}
26... Nxd3+ {[%clk 0:00:22]} 27. Ke2 {[%clk 0:00:52.1]} 27... Rad8 {[%clk
0:00:21.3]} 28. Bc3 {[%clk 0:00:49.7]} 28... Nc5 {[%clk 0:00:09.4]} 29. f4
{[%clk 0:00:41.2]} 29... Rxd1 {[%clk 0:00:08]} 30. Rxd1 {[%clk 0:00:36]} 30...
Ne4 {[%clk 0:00:06.3]} 31. Bxe5 {[%clk 0:00:34.1]} 31... Qc6 {[%clk 0:00:06.4]}
32. hxg6+ {[%clk 0:00:29]} 32... fxg6 {[%clk 0:00:04.7]} 33. Rd7 {[%clk
0:00:16.9]} 33... Qc2+ {[%clk 0:00:04.8]} 34. Kf3 {[%clk 0:00:16.9]} 34... Nd2+
{[%clk 0:00:02.8]} 35. Kg3 {[%clk 0:00:15.3]} 35... Nf1+ {[%clk 0:00:02.8]} 36.
Kh4 {[%clk 0:00:15.4]} 36... Qf2+ {[%clk 0:00:01.4]} 37. Kg5 {[%clk 0:00:14.1]}
1-0

[Event "Early-Titled-Tuesday-Blitz-October-24-2023"]
[Site "Chess.com"]
[Date "2023.10.24"]
[Round "11"]
[White "JoliyRoger"]
[Black "Ginzburg_Yakov"]
[Result "0-1"]
[WhiteElo "2475"]
[BlackElo "2600"]
[TimeControl "180+1"]
[EndTime "10:03:10 PDT"]
[Termination "Ginzburg_Yakov won on time"]

1. Nf3 {[%clk 0:02:54.4]} 1... Nf6 {[%clk 0:02:58.9]} 2. c4 {[%clk 0:02:53.9]}
2... c6 {[%clk 0:02:58.8]} 3. e3 {[%clk 0:02:49.8]} 3... d5 {[%clk 0:02:58.5]}
4. b3 {[%clk 0:02:50.5]} 4... g6 {[%clk 0:02:58.5]} 5. Bb2 {[%clk 0:02:51.2]}
5... Bg7 {[%clk 0:02:58.9]} 6. d4 {[%clk 0:02:51.7]} 6... O-O {[%clk 0:02:58.8]}
7. Bd3 {[%clk 0:02:52.3]} 7... Ne4 {[%clk 0:02:51.6]} 8. Qc2 {[%clk 0:02:50.2]}
8... Na6 {[%clk 0:02:30.6]} 9. a3 {[%clk 0:02:49.6]} 9... f5 {[%clk 0:02:17.1]}
10. O-O {[%clk 0:02:46.2]} 10... Be6 {[%clk 0:02:14.5]} 11. Ne1 {[%clk
0:02:43.2]} 11... Nc7 {[%clk 0:02:11]} 12. f3 {[%clk 0:02:43.5]} 12... Nf6
{[%clk 0:02:08.2]} 13. Nd2 {[%clk 0:02:43.6]} 13... Bh6 {[%clk 0:02:06.1]} 14.
f4 {[%clk 0:02:31.3]} 14... Ne4 {[%clk 0:01:57.6]} 15. Nef3 {[%clk 0:02:26.2]}
15... g5 {[%clk 0:01:45.5]} 16. Bxe4 {[%clk 0:02:00]} 16... fxe4 {[%clk
0:01:45.4]} 17. Nxg5 {[%clk 0:02:00.7]} 17... Bxg5 {[%clk 0:01:43.7]} 18. fxg5
{[%clk 0:02:01.6]} 18... Qd7 {[%clk 0:01:41.3]} 19. Rf4 {[%clk 0:01:55.8]} 19...
Rxf4 {[%clk 0:01:27.8]} 20. exf4 {[%clk 0:01:55.4]} 20... Bf5 {[%clk 0:01:28.1]}
21. Nf1 {[%clk 0:01:52.1]} 21... Rf8 {[%clk 0:01:22.7]} 22. Ne3 {[%clk
0:01:51.1]} 22... Qd6 {[%clk 0:01:19.3]} 23. Rf1 {[%clk 0:01:50.5]} 23... Ne6
{[%clk 0:01:19.2]} 24. g3 {[%clk 0:01:38.6]} 24... Bh3 {[%clk 0:01:16.8]} 25.
Rf2 {[%clk 0:01:38.4]} 25... Ng7 {[%clk 0:01:05.1]} 26. cxd5 {[%clk 0:01:20.8]}
26... cxd5 {[%clk 0:01:04.8]} 27. Qc5 {[%clk 0:01:21.3]} 27... Qxc5 {[%clk
0:00:24.4]} 28. dxc5 {[%clk 0:01:22.2]} 28... Rd8 {[%clk 0:00:23.4]} 29. Rd2
{[%clk 0:00:37.4]} 29... Ne6 {[%clk 0:00:21.2]} 30. Nxd5 {[%clk 0:00:34.7]}
30... Kf7 {[%clk 0:00:21]} 31. Rd1 {[%clk 0:00:09.8]} 31... Nxc5 {[%clk
0:00:20.4]} 32. Ne3 {[%clk 0:00:06.1]} 32... Rd3 {[%clk 0:00:13.8]} 33. Rxd3
{[%clk 0:00:05.3]} 33... exd3 {[%clk 0:00:14.1]} 34. b4 {[%clk 0:00:04.8]} 34...
Ne4 {[%clk 0:00:14.1]} 35. Bc3 {[%clk 0:00:03.8]} 35... Nxc3 {[%clk 0:00:13.9]}
36. Kf2 {[%clk 0:00:02.8]} 36... d2 {[%clk 0:00:14.4]} 37. g4 {[%clk 0:00:01.9]}
37... Bxg4 {[%clk 0:00:14.2]} 0-1

[Event "Early-Titled-Tuesday-Blitz-October-24-2023"]
[Site "Chess.com"]
[Date "2023.10.24"]
[Round "11"]
[White "Juicy_Fork"]
[Black "ZeGood_ZeBad_ZeUgly"]
[Result "1-0"]
[WhiteElo "2441"]
[BlackElo "2321"]
[TimeControl "180+1"]
[EndTime "10:03:12 PDT"]
[Termination "Juicy_Fork won on time"]

1. e4 {[%clk 0:02:57.8]} 1... c5 {[%clk 0:03:00]} 2. Nf3 {[%clk 0:02:57]} 2...
Nc6 {[%clk 0:02:53.7]} 3. Bb5 {[%clk 0:02:53.6]} 3... g6 {[%clk 0:02:50.1]} 4.
O-O {[%clk 0:02:52.4]} 4... Bg7 {[%clk 0:02:50.1]} 5. c3 {[%clk 0:02:51.8]} 5...
Nf6 {[%clk 0:02:42.4]} 6. Qa4 {[%clk 0:02:45.2]} 6... O-O {[%clk 0:02:38.2]} 7.
d4 {[%clk 0:02:39.5]} 7... cxd4 {[%clk 0:02:15.3]} 8. cxd4 {[%clk 0:02:38.8]}
8... a6 {[%clk 0:02:08.6]} 9. Re1 {[%clk 0:02:35.7]} 9... Qb6 {[%clk 0:01:48.5]}
10. Bf1 {[%clk 0:02:30.3]} 10... d5 {[%clk 0:01:44.8]} 11. e5 {[%clk 0:02:24.8]}
11... Ne4 {[%clk 0:01:43.7]} 12. h3 {[%clk 0:02:24.8]} 12... Bd7 {[%clk
0:01:42.3]} 13. Qd1 {[%clk 0:02:12.3]} 13... Rac8 {[%clk 0:01:41.6]} 14. Nc3
{[%clk 0:02:10.8]} 14... Nxc3 {[%clk 0:01:36.2]} 15. bxc3 {[%clk 0:02:07.8]}
15... Na5 {[%clk 0:01:35.9]} 16. Bd2 {[%clk 0:02:04.5]} 16... Bb5 {[%clk
0:01:32.7]} 17. Rb1 {[%clk 0:02:01.5]} 17... Qc6 {[%clk 0:01:22.8]} 18. Bxb5
{[%clk 0:01:55.8]} 18... axb5 {[%clk 0:01:23.7]} 19. Qc1 {[%clk 0:01:52.3]}
19... Nc4 {[%clk 0:01:20]} 20. Bh6 {[%clk 0:01:49.8]} 20... Ra8 {[%clk
0:01:15.5]} 21. Re2 {[%clk 0:01:42.6]} 21... Ra3 {[%clk 0:00:54.7]} 22. Nh4
{[%clk 0:01:35.8]} 22... Rfa8 {[%clk 0:00:50.7]} 23. Bxg7 {[%clk 0:01:32.6]}
23... Kxg7 {[%clk 0:00:49.9]} 24. Qg5 {[%clk 0:01:32.6]} 24... Qd7 {[%clk
0:00:37.5]} 25. g4 {[%clk 0:01:21.3]} 25... h6 {[%clk 0:00:33.2]} 26. Qf4 {[%clk
0:00:52]} 26... R8a6 {[%clk 0:00:31.5]} 27. Kh1 {[%clk 0:00:40.9]} 27... Rxc3
{[%clk 0:00:30.7]} 28. f3 {[%clk 0:00:35.7]} 28... Kg8 {[%clk 0:00:24.9]} 29.
Qxh6 {[%clk 0:00:17.7]} 29... Qe8 {[%clk 0:00:16.1]} 30. Nf5 {[%clk 0:00:12.4]}
30... gxf5 {[%clk 0:00:13.1]} 31. Qf4 {[%clk 0:00:05.9]} 31... fxg4 {[%clk
0:00:10.1]} 32. Rg1 {[%clk 0:00:05.1]} 32... Rg6 {[%clk 0:00:09.8]} 33. Rxg4
{[%clk 0:00:05.4]} 33... Kg7 {[%clk 0:00:05.4]} 34. Reg2 {[%clk 0:00:05.2]}
34... Rc2 {[%clk 0:00:03.7]} 35. Rxc2 {[%clk 0:00:04.2]} 35... e6 {[%clk
0:00:03.6]} 36. Rcg2 {[%clk 0:00:03.8]} 36... Kh7 {[%clk 0:00:04.1]} 37. Rxg6
{[%clk 0:00:03.2]} 37... fxg6 {[%clk 0:00:05]} 38. Qf6 {[%clk 0:00:03.7]} 38...
Qg8 {[%clk 0:00:04.6]} 39. Rg4 {[%clk 0:00:03.5]} 1-0

[Event "Early-Titled-Tuesday-Blitz-October-24-2023"]
[Site "Chess.com"]
[Date "2023.10.24"]
[Round "11"]
[White "Ducke13"]
[Black "Zhbugnoimt"]
[Result "0-1"]
[WhiteElo "2446"]
[BlackElo "2570"]
[TimeControl "180+1"]
[EndTime "10:03:14 PDT"]
[Termination "Zhbugnoimt won by checkmate"]

1. d4 {[%clk 0:02:56.2]} 1... Nf6 {[%clk 0:02:58.9]} 2. g3 {[%clk 0:02:56.1]}
2... d5 {[%clk 0:02:59]} 3. c4 {[%clk 0:02:55.5]} 3... e6 {[%clk 0:02:58.8]} 4.
Nf3 {[%clk 0:02:55.7]} 4... Be7 {[%clk 0:02:59.3]} 5. Bg2 {[%clk 0:02:56.3]}
5... O-O {[%clk 0:03:00.2]} 6. O-O {[%clk 0:02:56.6]} 6... dxc4 {[%clk
0:03:01.1]} 7. Qc2 {[%clk 0:02:56.8]} 7... b5 {[%clk 0:03:01.8]} 8. a4 {[%clk
0:02:56.2]} 8... b4 {[%clk 0:03:02.4]} 9. Nfd2 {[%clk 0:02:56.8]} 9... Nd5
{[%clk 0:03:02]} 10. Nxc4 {[%clk 0:02:55.4]} 10... c5 {[%clk 0:03:02.6]} 11.
dxc5 {[%clk 0:02:47.1]} 11... Ba6 {[%clk 0:03:02]} 12. Nbd2 {[%clk 0:02:46.5]}
12... Nc6 {[%clk 0:02:58.9]} 13. Nb3 {[%clk 0:02:45.1]} 13... Rc8 {[%clk
0:02:53.6]} 14. Rd1 {[%clk 0:02:43.2]} 14... Bxc4 {[%clk 0:02:42.6]} 15. Qxc4
{[%clk 0:02:41.8]} 15... Na5 {[%clk 0:02:43.5]} 16. Nxa5 {[%clk 0:02:34.9]}
16... Qxa5 {[%clk 0:02:44.4]} 17. c6 {[%clk 0:02:29.5]} 17... Qb6 {[%clk
0:02:32.2]} 18. Bxd5 {[%clk 0:02:26.8]} 18... exd5 {[%clk 0:02:32.1]} 19. Qb5
{[%clk 0:02:15.2]} 19... Qxc6 {[%clk 0:02:23.6]} 20. Rxd5 {[%clk 0:02:14.2]}
20... Bf6 {[%clk 0:02:12.9]} 21. Be3 {[%clk 0:02:04.9]} 21... Bxb2 {[%clk
0:02:05.2]} 22. Rad1 {[%clk 0:02:05.4]} 22... Bc3 {[%clk 0:01:55.5]} 23. Bxa7
{[%clk 0:02:03.7]} 23... h6 {[%clk 0:01:40.3]} 24. Bc5 {[%clk 0:01:51.5]} 24...
Rfe8 {[%clk 0:01:34]} 25. e3 {[%clk 0:01:38.9]} 25... Qe6 {[%clk 0:01:30]} 26.
Bd4 {[%clk 0:01:16.1]} 26... Rb8 {[%clk 0:01:25.8]} 27. Qd7 {[%clk 0:01:14]}
27... Qe4 {[%clk 0:00:57.1]} 28. Rb5 {[%clk 0:00:46.9]} 28... Rbd8 {[%clk
0:00:43.2]} 29. Qa7 {[%clk 0:00:44.8]} 29... Qc2 {[%clk 0:00:42.4]} 30. Rf1
{[%clk 0:00:36.1]} 30... Ra8 {[%clk 0:00:31.6]} 31. Qd7 {[%clk 0:00:29.6]} 31...
Red8 {[%clk 0:00:28.7]} 32. Qg4 {[%clk 0:00:24.6]} 32... Bxd4 {[%clk 0:00:27.8]}
33. exd4 {[%clk 0:00:23.8]} 33... Qxa4 {[%clk 0:00:28.7]} 34. Rb7 {[%clk
0:00:20.5]} 34... Rab8 {[%clk 0:00:29.1]} 35. Rc7 {[%clk 0:00:15.2]} 35... b3
{[%clk 0:00:26.8]} 36. Qf4 {[%clk 0:00:15.5]} 36... Qe8 {[%clk 0:00:18.4]} 37.
Rb1 {[%clk 0:00:14.3]} 37... Qe6 {[%clk 0:00:18.1]} 38. Rb2 {[%clk 0:00:12.2]}
38... Rbc8 {[%clk 0:00:18.1]} 39. Rb7 {[%clk 0:00:10.6]} 39... Qd5 {[%clk
0:00:14]} 40. R7xb3 {[%clk 0:00:10.6]} 40... Re8 {[%clk 0:00:13.2]} 41. Rb1
{[%clk 0:00:10.9]} 41... Rc2 {[%clk 0:00:11.9]} 42. Re3 {[%clk 0:00:08.3]} 42...
Rec8 {[%clk 0:00:11.6]} 43. Qf3 {[%clk 0:00:08.4]} 43... Qxd4 {[%clk 0:00:11.1]}
44. Rbe1 {[%clk 0:00:07]} 44... g6 {[%clk 0:00:10.1]} 45. Qb7 {[%clk 0:00:05.2]}
45... Rf8 {[%clk 0:00:09.7]} 46. Re7 {[%clk 0:00:05]} 46... Qxf2+ {[%clk
0:00:09.9]} 47. Kh1 {[%clk 0:00:04.9]} 47... Qxh2# {[%clk 0:00:10.8]} 0-1

[Event "Early-Titled-Tuesday-Blitz-October-24-2023"]
[Site "Chess.com"]
[Date "2023.10.24"]
[Round "11"]
[White "GMWSO"]
[Black "lilleper1"]
[Result "1-0"]
[WhiteElo "3075"]
[BlackElo "2892"]
[TimeControl "180+1"]
[EndTime "10:03:15 PDT"]
[Termination "GMWSO won by resignation"]

1. b3 {[%clk 0:02:53.9]} 1... e5 {[%clk 0:02:59.5]} 2. Bb2 {[%clk 0:02:54.8]}
2... Nc6 {[%clk 0:02:59.1]} 3. e3 {[%clk 0:02:54]} 3... Nf6 {[%clk 0:02:58]} 4.
Bb5 {[%clk 0:02:53.4]} 4... e4 {[%clk 0:02:52.2]} 5. Ne2 {[%clk 0:02:48.8]} 5...
h5 {[%clk 0:02:46.9]} 6. Nbc3 {[%clk 0:02:27.3]} 6... a6 {[%clk 0:02:44.2]} 7.
Bxc6 {[%clk 0:02:26.4]} 7... dxc6 {[%clk 0:02:44.8]} 8. Ng3 {[%clk 0:02:25.8]}
8... Qe7 {[%clk 0:02:36.9]} 9. f3 {[%clk 0:02:25.1]} 9... exf3 {[%clk
0:02:34.5]} 10. Qxf3 {[%clk 0:02:26]} 10... Bg4 {[%clk 0:02:32.5]} 11. Qf2
{[%clk 0:02:20.1]} 11... h4 {[%clk 0:02:30.3]} 12. Nf5 {[%clk 0:02:19.9]} 12...
Qd7 {[%clk 0:02:25.1]} 13. Nxh4 {[%clk 0:02:12.7]} 13... Bb4 {[%clk 0:02:24.5]}
14. Nf3 {[%clk 0:01:59.7]} 14... Bxc3 {[%clk 0:02:22.7]} 15. Bxc3 {[%clk
0:01:55.9]} 15... Ne4 {[%clk 0:02:23]} 16. Qe2 {[%clk 0:01:56.5]} 16... Nxc3
{[%clk 0:02:20.6]} 17. dxc3 {[%clk 0:01:57]} 17... O-O-O {[%clk 0:02:21]} 18.
O-O {[%clk 0:01:52.5]} 18... f6 {[%clk 0:02:01.8]} 19. Rad1 {[%clk 0:01:50]}
19... Qe7 {[%clk 0:01:58.7]} 20. h3 {[%clk 0:01:44.1]} 20... Bh5 {[%clk
0:01:56.2]} 21. Qf2 {[%clk 0:01:37.8]} 21... Rhe8 {[%clk 0:01:42.4]} 22. Rxd8+
{[%clk 0:01:35.6]} 22... Rxd8 {[%clk 0:01:43.3]} 23. Nh4 {[%clk 0:01:29.8]}
23... Kb8 {[%clk 0:01:35.8]} 24. Nf5 {[%clk 0:01:28]} 24... Qf8 {[%clk 0:01:29]}
25. e4 {[%clk 0:01:26.9]} 25... Bg6 {[%clk 0:01:24]} 26. a4 {[%clk 0:01:25.9]}
26... Bxf5 {[%clk 0:01:21.7]} 27. exf5 {[%clk 0:01:14.5]} 27... Rd5 {[%clk
0:01:21.7]} 28. c4 {[%clk 0:01:13.8]} 28... Re5 {[%clk 0:01:21.6]} 29. Re1
{[%clk 0:01:13.9]} 29... Qe7 {[%clk 0:01:16.9]} 30. Rxe5 {[%clk 0:01:13.7]}
30... Qxe5 {[%clk 0:01:17.8]} 31. g4 {[%clk 0:01:11.5]} 31... a5 {[%clk
0:01:16.6]} 32. Kg2 {[%clk 0:01:10.3]} 32... b6 {[%clk 0:01:15.3]} 33. h4 {[%clk
0:01:07]} 33... Qe4+ {[%clk 0:01:14.5]} 34. Kg3 {[%clk 0:01:03.5]} 34... Qe5+
{[%clk 0:01:13.1]} 35. Kg2 {[%clk 0:01:01.6]} 35... Qe4+ {[%clk 0:01:13.2]} 36.
Kh3 {[%clk 0:01:02.3]} 36... Kb7 {[%clk 0:01:07.1]} 37. g5 {[%clk 0:01:01.2]}
37... Qh1+ {[%clk 0:00:56.4]} 38. Kg4 {[%clk 0:00:58.3]} 38... Qd1+ {[%clk
0:00:52.8]} 39. Qf3 {[%clk 0:00:57.5]} 39... Qxc2 {[%clk 0:00:47.9]} 40. Kh5
{[%clk 0:00:57.8]} 40... Qh2 {[%clk 0:00:35.1]} 41. gxf6 {[%clk 0:00:50.9]}
41... gxf6 {[%clk 0:00:36]} 42. Qg4 {[%clk 0:00:49.5]} 42... Qc2 {[%clk
0:00:30.9]} 43. Kg6 {[%clk 0:00:48.4]} 43... Qxb3 {[%clk 0:00:29.6]} 44. h5
{[%clk 0:00:48.9]} 44... Qxa4 {[%clk 0:00:25.8]} 45. h6 {[%clk 0:00:48.8]} 45...
Qb4 {[%clk 0:00:20.2]} 46. h7 {[%clk 0:00:49.1]} 46... Qf8 {[%clk 0:00:20.6]}
47. Kh5 {[%clk 0:00:39]} 47... Qe8+ {[%clk 0:00:16.7]} 48. Qg6 {[%clk
0:00:34.4]} 48... Qe2+ {[%clk 0:00:16.2]} 49. Kh6 {[%clk 0:00:34.4]} 49... Qd2+
{[%clk 0:00:11.6]} 50. Kg7 {[%clk 0:00:33.6]} 50... Qd7+ {[%clk 0:00:11.1]} 51.
Qf7 {[%clk 0:00:33.7]} 51... Qxf5 {[%clk 0:00:11.4]} 52. h8=Q {[%clk 0:00:34.2]}
52... Qg4+ {[%clk 0:00:10.7]} 53. Qg6 {[%clk 0:00:31.4]} 53... Qxc4 {[%clk
0:00:10.6]} 54. Qge8 {[%clk 0:00:29.8]} 54... Qg4+ {[%clk 0:00:10.7]} 55. Kf7
{[%clk 0:00:29]} 55... Qc4+ {[%clk 0:00:10.5]} 56. Qe6 {[%clk 0:00:29.3]} 1-0

[Event "Early-Titled-Tuesday-Blitz-October-24-2023"]
[Site "Chess.com"]
[Date "2023.10.24"]
[Round "11"]
[White "Nf3c5"]
[Black "KorolDimitriy75"]
[Result "1-0"]
[WhiteElo "2589"]
[BlackElo "2344"]
[TimeControl "180+1"]
[EndTime "10:03:15 PDT"]
[Termination "Nf3c5 won on time"]

1. d4 {[%clk 0:03:00.9]} 1... Nf6 {[%clk 0:02:59.6]} 2. Nf3 {[%clk 0:02:57.4]}
2... g6 {[%clk 0:02:59.3]} 3. Bg5 {[%clk 0:02:56.9]} 3... Bg7 {[%clk 0:02:58.4]}
4. Nbd2 {[%clk 0:02:57.3]} 4... c5 {[%clk 0:02:58.5]} 5. Bxf6 {[%clk 0:02:39.2]}
5... Bxf6 {[%clk 0:02:59.4]} 6. Ne4 {[%clk 0:02:39.5]} 6... Bxd4 {[%clk
0:02:59.4]} 7. Nxd4 {[%clk 0:02:33.9]} 7... cxd4 {[%clk 0:03:00.3]} 8. Qxd4
{[%clk 0:02:34.5]} 8... O-O {[%clk 0:03:00.9]} 9. O-O-O {[%clk 0:02:31.2]} 9...
Nc6 {[%clk 0:02:56.3]} 10. Qd2 {[%clk 0:02:16.5]} 10... Qa5 {[%clk 0:02:42.6]}
11. Nc3 {[%clk 0:02:13.6]} 11... d6 {[%clk 0:02:34.8]} 12. h4 {[%clk 0:02:09.4]}
12... Be6 {[%clk 0:02:30.5]} 13. a3 {[%clk 0:01:25.6]} 13... Rac8 {[%clk
0:01:22.6]} 14. e4 {[%clk 0:00:59.9]} 14... Ne5 {[%clk 0:00:59.8]} 15. h5 {[%clk
0:00:56.4]} 15... Rc5 {[%clk 0:00:38.9]} 16. hxg6 {[%clk 0:00:45]} 16... fxg6
{[%clk 0:00:39.8]} 17. f4 {[%clk 0:00:28.4]} 17... Ng4 {[%clk 0:00:19.2]} 18. f5
{[%clk 0:00:18.6]} 18... gxf5 {[%clk 0:00:12.3]} 19. Qg5+ {[%clk 0:00:18.4]}
19... Kh8 {[%clk 0:00:11.8]} 20. Qxe7 {[%clk 0:00:19]} 20... Rf7 {[%clk
0:00:08.2]} 21. Qe8+ {[%clk 0:00:15.8]} 21... Kg7 {[%clk 0:00:07.8]} 22. Qxe6
{[%clk 0:00:10.8]} 22... Re5 {[%clk 0:00:07.6]} 23. Qb3 {[%clk 0:00:10.3]} 23...
Nf2 {[%clk 0:00:06.9]} 24. Bd3 {[%clk 0:00:09.6]} 24... Nxd1 {[%clk 0:00:06.4]}
25. Rxd1 {[%clk 0:00:09.3]} 25... f4 {[%clk 0:00:06.2]} 26. Be2 {[%clk
0:00:08.9]} 26... Qc5 {[%clk 0:00:05.2]} 27. Bf3 {[%clk 0:00:08.8]} 27... Qe3+
{[%clk 0:00:04.8]} 28. Kb1 {[%clk 0:00:09.3]} 28... a6 {[%clk 0:00:05.3]} 29.
Qc4 {[%clk 0:00:09.1]} 29... b5 {[%clk 0:00:04.9]} 30. Qb3 {[%clk 0:00:08.6]}
30... a5 {[%clk 0:00:04.7]} 31. Nd5 {[%clk 0:00:08.7]} 31... Qc5 {[%clk
0:00:03.5]} 32. Qd3 {[%clk 0:00:08.4]} 32... b4 {[%clk 0:00:03.1]} 33. axb4
{[%clk 0:00:08.7]} 33... axb4 {[%clk 0:00:04]} 34. Qd4 {[%clk 0:00:09.3]} 34...
Qa5 {[%clk 0:00:03.6]} 35. Qxb4 {[%clk 0:00:09.1]} 35... Qa6 {[%clk 0:00:03.5]}
36. Qc3 {[%clk 0:00:09]} 36... Ra7 {[%clk 0:00:03]} 37. b3 {[%clk 0:00:09.6]}
37... Qa2+ {[%clk 0:00:01]} 38. Kc1 {[%clk 0:00:09.8]} 38... Qa3+ {[%clk
0:00:01.5]} 39. Qb2 {[%clk 0:00:10.1]} 39... Qc5 {[%clk 0:00:01.2]} 40. Kb1
{[%clk 0:00:10.3]} 1-0